bitfinex-derivatives/quotes_BTCF0:USTF0_20250416
["timestamp","ask_amount","ask_price","bid_price","bid_amount"]
[1744845450834,0.23450999,84356.0,84355.0,0.00517747]
[1744845451133,0.2225546,84356.0,84355.0,0.00517747]
[1744845451926,0.2225546,84356.0,84355.0,0.00617747]
[1744845452124,0.2235546,84356.0,84355.0,0.00617747]
[1744845452333,0.23540421,84356.0,84355.0,0.00617747]
[1744845452929,0.6349546,84356.0,84355.0,0.00617747]
[1744845453632,0.1185631,84350.0,84349.0,0.033]
[1744845453833,0.4893631,84350.0,84349.0,0.033]
[1744845454026,0.1185659,84348.0,84347.0,0.00017775]
[1744845454228,0.1285659,84348.0,84347.0,0.00017775]
[1744845454533,0.1185785,84339.0,84338.0,0.0632]
[1744845454726,0.4893785,84339.0,84338.0,0.0632]
[1744845455133,0.4893785,84339.0,84338.0,0.03308]
[1744845455329,0.5513785,84339.0,84338.0,0.03308]
[1744845455526,0.5513785,84339.0,84332.0,0.030308]
[1744845455527,0.1185856,84334.0,84333.0,0.0326]
[1744845455726,0.1285856,84334.0,84333.0,0.0303]
[1744845456334,0.1926856,84334.0,84333.0,0.0303]
[1744845456822,0.1185912,84330.0,84329.0,0.00509905]
[1744845457030,0.4793912,84330.0,84329.0,0.00509905]
[1744845457325,0.4893912,84330.0,84329.0,0.00509905]
[1744845457523,0.5534912,84330.0,84329.0,0.00509905]
[1744845457724,0.5534912,84330.0,84329.0,0.00517905]
[1744845458428,0.5544912,84330.0,84329.0,0.00517905]
[1744845458934,0.5544912,84330.0,84329.0,0.03617905]
[1744845460421,0.5224912,84330.0,84329.0,0.03617905]
[1744845460622,0.1295912,84330.0,84329.0,0.15477165]
[1744845460823,0.011,84330.0,84329.0,0.19837378]
[1744845461228,0.011,84330.0,84329.0,0.18677165]
[1744845461432,0.1295912,84330.0,84329.0,0.18677165]
[1744845462531,0.4903912,84330.0,84329.0,0.18677165]
[1744845462739,0.1295912,84330.0,84329.0,0.18677165]
[1744845463534,0.1295912,84330.0,84329.0,0.18669165]
[1744845463735,0.1295912,84330.0,84329.0,0.18677165]
[1744845474234,0.011,84330.0,84329.0,0.18677165]
[1744845475240,0.1295912,84330.0,84329.0,0.18677165]
[1744845482541,0.1295912,84330.0,84329.0,0.21817165]
[1744845484242,0.1599912,84330.0,84329.0,0.21817165]
[1744845497059,0.1599912,84330.0,84329.0,0.18717165]
[1744845497663,0.1599912,84330.0,84329.0,0.00517905]
[1744845497959,0.1599912,84330.0,84329.0,0.12377165]
[1744845506856,0.1599912,84330.0,84329.0,0.15387165]
[1744845509259,0.1295912,84330.0,84329.0,0.15387165]
[1744845510264,0.1605912,84330.0,84329.0,0.15387165]
[1744845513766,0.042,84330.0,84329.0,0.15387165]
[1744845514072,0.011,84330.0,84329.0,0.15387165]
[1744845514273,0.1942937,84344.0,84343.0,0.1185729]
[1744845514464,0.1778595,84344.0,84343.0,0.1185729]
[1744845515262,0.0329,84345.0,84344.0,0.1185715]
[1744845515459,0.00017775,84347.0,84345.0,0.1185701]
[1744845515664,0.00017775,84347.0,84343.0,0.0592858]
[1744845515665,0.00017775,84347.0,84346.0,0.1185687]
[1744845516259,0.00017775,84347.0,84346.0,0.4793687]
[1744845516659,0.00317775,84347.0,84346.0,0.4793687]
[1744845517162,0.00317775,84347.0,84346.0,0.5221127]
[1744845517963,0.00617775,84347.0,84346.0,0.5231127]
[1744845521677,0.03887775,84347.0,84346.0,0.5231127]
[1744845522065,0.15744505,84347.0,84346.0,0.5231127]
[1744845522575,0.15744505,84347.0,84346.0,0.5425687]
[1744845530880,0.15744505,84347.0,84346.0,0.1196487]
[1744845531279,0.15744505,84347.0,84346.0,1.6196487]
[1744845532370,0.15744505,84347.0,84346.0,1.50108]
[1744845532575,0.15744505,84347.0,84346.0,0.00108]
[1744845533474,0.15744505,84347.0,84346.0,0.001]
[1744845533674,0.15744505,84347.0,84346.0,0.00108]
[1744845534478,0.15744505,84347.0,84346.0,0.001]
[1744845534677,0.15744505,84347.0,84346.0,0.00108]
[1744845544880,0.51824505,84347.0,84346.0,0.00108]
[1744845551090,0.51824505,84347.0,84340.0,0.000108]
[1744845551091,0.1185757,84341.0,84340.0,0.000108]
[1744845551594,0.1185814,84337.0,84336.0,0.0327]
[1744845551794,0.4793814,84337.0,84336.0,0.1512828]
[1744845552497,0.5096814,84337.0,84336.0,0.1512828]
[1744845553086,0.5106814,84337.0,84336.0,0.1512828]
[1744845554293,0.5116814,84337.0,84336.0,0.1512828]
[1744845554490,0.5106814,84337.0,84336.0,0.1512828]
[1744845554687,0.5126814,84337.0,84336.0,0.1512828]
[1744845555197,0.4823814,84337.0,84336.0,0.1512828]
[1744845556190,0.003,84337.0,84336.0,0.1512828]
[1744845556392,0.1215814,84337.0,84336.0,0.1512828]
[1744845556887,0.003,84337.0,84336.0,0.1512828]
[1744845557093,0.003,84337.0,84336.0,0.5120828]
[1744845557796,0.003,84337.0,84336.0,2.0120828]
[1744845558597,0.003,84337.0,84336.0,0.5120828]
[1744845559601,0.003,84337.0,84336.0,0.5422828]
[1744845562194,0.003,84337.0,84336.0,2.0422828]
[1744845562903,0.00017775,84347.0,84336.0,1.9237]
[1744845563107,0.00017775,84347.0,84346.0,0.1185687]
[1744845564006,0.00417775,84347.0,84346.0,0.1185687]
[1744845564305,0.00717775,84347.0,84346.0,0.1185687]
[1744845565006,0.00717775,84347.0,84346.0,0.1186487]
[1744845565505,0.12574505,84347.0,84346.0,0.1186487]
[1744845565711,0.12174505,84347.0,84346.0,0.1186487]
[1744845566007,0.12574505,84347.0,84346.0,0.1186487]
[1744845566504,0.12574505,84347.0,84346.0,0.1839487]
[1744845566907,0.12474505,84347.0,84346.0,0.1849487]
[1744845569500,0.15794505,84347.0,84346.0,0.1849487]
[1744845571207,0.15794505,84347.0,84346.0,0.00108]
[1744845571506,0.18864505,84347.0,84346.0,0.001]
[1744845571703,0.1185828,84336.0,84335.0,0.07568]
[1744845571906,0.1185856,84334.0,84333.0,0.1185864]
[1744845572614,0.1830856,84334.0,84333.0,0.1186664]
[1744845573008,0.1840856,84334.0,84333.0,0.1195864]
[1744845573209,0.1840856,84334.0,84333.0,0.1196664]
[1744845573604,0.1840856,84334.0,84333.0,0.1508664]
[1744845574514,0.1850856,84334.0,84333.0,0.1508664]
[1744845575110,0.1840856,84334.0,84333.0,0.1498664]
[1744845586722,0.1840856,84334.0,84333.0,0.1186664]
[1744845593727,0.1840856,84334.0,84333.0,8e-05]
[1744845595338,0.1840856,84334.0,84333.0,0.03018]
[1744845599544,0.1840856,84334.0,84333.0,8e-05]
[1744845599943,0.1840856,84334.0,84330.0,0.0318]
[1744845599944,0.1185898,84331.0,84330.0,0.0318]
[1744845600447,0.4793898,84331.0,84330.0,0.0318]
[1744845600742,0.5438898,84331.0,84330.0,8e-05]
[1744845600948,0.1185912,84330.0,84329.0,0.00509905]
[1744845601252,0.1509912,84330.0,84329.0,0.00509905]
[1744845601451,0.2154912,84330.0,84329.0,0.00509905]
[1744845601645,0.2154912,84330.0,84329.0,0.00517905]
[1744845602146,0.1830912,84330.0,84329.0,0.12377165]
[1744845602350,0.1514912,84330.0,84329.0,0.12377165]
[1744845602754,0.1514912,84330.0,84329.0,0.00517905]
[1744845603245,0.1524912,84330.0,84329.0,0.03727905]
[1744845605050,0.5132912,84330.0,84329.0,0.06907905]
[1744845606252,0.1524912,84330.0,84329.0,0.06907905]
[1744845608155,0.1524912,84330.0,84329.0,0.18767165]
[1744845610558,0.1524912,84330.0,84329.0,0.03797905]
[1744845611154,0.118601,84323.0,84322.0,0.000108]
[1744845611355,0.479401,84323.0,84322.0,0.0305]
[1744845611555,0.479401,84323.0,84322.0,0.03058]
[1744845611963,0.180001,84323.0,84322.0,0.03058]
[1744845612351,0.541801,84323.0,84322.0,0.03158]
[1744845612748,0.541801,84323.0,84322.0,0.1511824]
[1744845613554,0.541801,84323.0,84322.0,0.03258]
[1744845613953,0.541801,84323.0,84322.0,0.0325]
[1744845614163,0.541801,84323.0,84322.0,0.00208]
[1744845614464,0.541801,84323.0,84322.0,0.002]
[1744845614662,0.541801,84323.0,84322.0,0.00208]
[1744845616363,0.541801,84323.0,84322.0,0.002]
[1744845617152,0.541801,84323.0,84322.0,0.00208]
[1744845619071,0.541801,84323.0,84322.0,0.03458]
[1744845619262,0.541801,84323.0,84322.0,0.06568]
[1744845620567,0.181001,84323.0,84322.0,0.06568]
[1744845621671,0.181001,84323.0,84322.0,0.1842824]
[1744845622661,0.541801,84323.0,84322.0,0.1842824]
[1744845624869,0.181001,84323.0,84322.0,0.1842824]
[1744845630375,0.181001,84323.0,84322.0,0.1531824]
[1744845632080,0.181001,84323.0,84322.0,0.1853824]
[1744845634274,0.181001,84323.0,84322.0,0.06678]
[1744845635776,0.541801,84323.0,84322.0,0.03458]
[1744845638269,0.541801,84323.0,84322.0,0.06708]
[1744845639781,0.181001,84323.0,84322.0,0.06708]
[1744845639974,0.541801,84323.0,84322.0,0.06708]
[1744845640174,0.541801,84323.0,84322.0,0.05595436]
[1744845640375,0.1186081,84318.0,84317.0,0.0594127]
[1744845641374,0.1507081,84318.0,84317.0,0.0594127]
[1744845641573,0.1507081,84318.0,84317.0,0.0614127]
[1744845641979,0.1517081,84318.0,84317.0,0.0614127]
[1744845643375,0.5125081,84318.0,84317.0,0.0939127]
[1744845643575,0.4804081,84318.0,84317.0,0.0939127]
[1744845645280,0.1512081,84318.0,84317.0,0.0939127]
[1744845645585,0.5120081,84318.0,84317.0,0.0939127]
[1744845646976,0.1512081,84318.0,84317.0,0.0939127]
[1744845655987,0.1818081,84318.0,84317.0,0.0939127]
[1744845656691,0.1512081,84318.0,84317.0,0.0939127]
[1744845660291,0.0326,84318.0,84317.0,0.0939127]
[1744845660887,0.001,84318.0,84317.0,0.0939127]
[1744845661292,0.001,84318.0,84317.0,0.1270127]
[1744845662593,0.0317,84324.0,84323.0,0.118601]
[1744845662783,0.0317,84324.0,84323.0,0.216001]
[1744845662983,0.1502996,84324.0,84323.0,0.216001]
[1744845663484,0.5110996,84324.0,84323.0,0.216001]
[1744845663685,0.5110996,84324.0,84318.0,0.0593039]
[1744845663686,0.4518,84324.0,84318.0,0.0593039]
[1744845663884,0.1186067,84319.0,84318.0,0.0593039]
[1744845664082,0.1186067,84319.0,84318.0,0.0593839]
[1744845664798,0.2139067,84319.0,84318.0,0.0593839]
[1744845665496,0.2139067,84319.0,84318.0,0.0593039]
[1744845665688,0.2139067,84319.0,84318.0,0.0593839]
[1744845665888,0.2139067,84319.0,84318.0,0.0603839]
[1744845666395,0.2139067,84319.0,84318.0,0.0613839]
[1744845666591,0.2139067,84319.0,84318.0,0.0603839]
[1744845666797,0.2139067,84319.0,84318.0,0.0623839]
[1744845666997,0.2139067,84319.0,84318.0,0.0613839]
[1744845667195,0.2149067,84319.0,84318.0,0.0623839]
[1744845671600,0.2149067,84319.0,84318.0,0.00308]
[1744845672001,0.2149067,84319.0,84318.0,0.003]
[1744845672300,0.2149067,84319.0,84318.0,0.00308]
[1744845673095,0.2149067,84319.0,84318.0,0.1216881]
[1744845673801,0.2149067,84319.0,84318.0,0.00308]
[1744845674890,0.2149067,84319.0,84318.0,0.1216881]
[1744845684513,0.5757067,84319.0,84318.0,0.1216881]
[1744845685012,0.5757067,84319.0,84318.0,0.00308]
[1744845686813,0.5757067,84319.0,84318.0,0.1216881]
[1744845691112,0.1186179,84311.0,84307.0,0.0328]
[1744845691311,0.1186179,84311.0,84307.0,0.0648]
[1744845691515,0.1186179,84311.0,84310.0,0.1186193]
[1744845691709,0.1186179,84311.0,84310.0,0.1186993]
[1744845692214,0.1196179,84311.0,84310.0,0.1186993]
[1744845692421,0.1196179,84311.0,84310.0,0.1502993]
[1744845692713,0.1196179,84311.0,84310.0,0.15928532]
[1744845693510,0.1196179,84311.0,84310.0,0.16028532]
[1744845694011,0.1196179,84311.0,84310.0,0.1512993]
[1744845697713,0.001,84311.0,84310.0,0.15999093]
[1744845698112,0.001,84311.0,84310.0,0.19209093]
[1744845698512,0.4114,84324.0,84310.0,0.07347163]
[1744845698716,0.4114,84324.0,84323.0,0.118601]
[1744845699116,0.11877516,84326.0,84325.0,0.1185982]
[1744845699515,0.00017786,84326.0,84325.0,0.1185982]
[1744845699919,0.11877466,84326.0,84325.0,0.1185982]
[1744845700108,0.11877466,84326.0,84325.0,0.1500982]
[1744845700309,0.00017786,84326.0,84325.0,0.1500982]
[1744845700513,0.11877466,84326.0,84325.0,0.1500982]
[1744845702124,0.12277466,84326.0,84325.0,0.1500982]
[1744845706932,0.18427466,84326.0,84325.0,0.1500982]
[1744845707634,0.15347466,84326.0,84325.0,0.1500982]
[1744845720452,0.18657466,84326.0,84325.0,0.1500982]
[1744845721255,0.03487786,84326.0,84325.0,0.5108982]
[1744845721651,0.00417786,84326.0,84325.0,0.5108982]
[1744845722150,0.0319,84330.0,84329.0,0.1185926]
[1744845722542,0.0301,84338.0,84335.0,0.0592921]
[1744845722751,0.6206514,84348.0,84347.0,0.1185673]
[1744845723254,0.4114,84348.0,84347.0,0.1185673]
[1744845723645,0.1185598,84353.0,84352.0,0.1185603]
[1744845723847,0.1511598,84353.0,84352.0,0.1185603]
[1744845724953,0.0376,84353.0,84352.0,0.1185603]
[1744845725550,0.0416,84353.0,84352.0,0.1507603]
[1744845726856,0.1601589,84353.0,84352.0,0.1507603]
[1744845728558,0.1601589,84353.0,84352.0,0.1185603]
[1744845732052,0.1601589,84353.0,84352.0,0.1507603]
[1744845733147,0.0416,84353.0,84352.0,0.1507603]
[1744845733344,0.009,84353.0,84352.0,0.1507603]
[1744845733549,0.009,84353.0,84352.0,0.1837603]
[1744845735054,0.0414,84353.0,84352.0,0.1837603]
[1744845737557,0.00017786,84356.0,84355.0,0.1185561]
[1744845737752,0.005,84358.0,84357.0,0.1185532]
[1744845737952,0.0302,84361.0,84360.0,0.118549]
[1744845738955,0.0611,84361.0,84360.0,0.118549]
[1744845740458,0.0681,84361.0,84360.0,0.119549]
[1744845740666,0.0681,84361.0,84360.0,0.152349]
[1744845740855,0.0681,84361.0,84360.0,0.183349]
[1744845741056,0.0731,84361.0,84360.0,0.183349]
[1744845742052,0.0731,84361.0,84360.0,0.19235705]
[1744845750367,0.0731,84361.0,84360.0,0.15955705]
[1744845750576,0.0731,84361.0,84360.0,0.12855705]
[1744845750768,0.1916476,84361.0,84360.0,0.001]
[1744845750973,0.1916476,84361.0,84360.0,0.119629]
[1744845751170,0.4416476,84361.0,84360.0,0.00108]
[1744845751467,0.4416476,84361.0,84360.0,0.001]
[1744845751675,0.1185687,84347.0,84346.0,0.1779932]
[1744845751877,0.3608,84348.0,84347.0,0.1185673]
[1744845752062,0.4793659,84348.0,84347.0,0.1185673]
[1744845752265,0.5426659,84348.0,84347.0,0.1185673]
[1744845752676,0.4241,84348.0,84347.0,0.1185673]
[1744845753377,0.5426659,84348.0,84347.0,0.1185673]
[1744845753777,0.5456659,84348.0,84347.0,0.1185673]
[1744845753979,0.4301,84348.0,84347.0,0.1195673]
[1744845754375,0.5486659,84348.0,84347.0,0.1195673]
[1744845756376,0.4301,84348.0,84347.0,0.1195673]
[1744845759678,0.0693,84348.0,84347.0,0.1513673]
[1744845760075,0.0693,84348.0,84347.0,0.1830673]
[1744845761985,0.0378,84348.0,84347.0,0.1830673]
[1744845762283,0.006,84348.0,84347.0,0.1830673]
[1744845762475,0.4114,84353.0,84352.0,0.1185603]
[1744845763380,0.4114,84353.0,84352.0,1.6791603]
[1744845763585,0.4154,84353.0,84352.0,1.6791603]
[1744845764187,0.4154,84353.0,84352.0,0.1791603]
[1744845764386,0.4114,84353.0,84352.0,0.1801603]
[1744845764578,0.4154,84353.0,84352.0,0.1811603]
[1744845764780,0.4154,84353.0,84352.0,1.6811603]
[1744845765084,0.4114,84353.0,84352.0,1.6841603]
[1744845765281,0.4124,84353.0,84352.0,0.1841603]
[1744845765887,0.4124,84353.0,84352.0,0.1831603]
[1744845766089,0.4124,84353.0,84352.0,0.1851603]
[1744845766682,0.001,84353.0,84352.0,0.1851603]
[1744845770592,0.1195589,84353.0,84352.0,0.1245603]
[1744845771690,0.1828589,84353.0,84352.0,0.1245603]
[1744845772185,0.1828589,84353.0,84352.0,0.1246403]
[1744845780491,0.1520589,84353.0,84352.0,0.1246403]
[1744845780689,0.1520589,84353.0,84352.0,0.1553403]
[1744845782680,0.0335,84353.0,84352.0,0.1553403]
[1744845783792,0.001,84353.0,84352.0,0.1553403]
[1744845785492,0.001,84353.0,84352.0,0.1246403]
[1744845785885,0.0647,84353.0,84352.0,0.1245603]
[1744845786188,0.0647,84353.0,84352.0,0.1246403]
[1744845786391,0.0647,84353.0,84352.0,0.1571403]
[1744845786695,0.5440589,84353.0,84352.0,0.1246403]
[1744845786993,0.1832589,84353.0,84352.0,0.1245603]
[1744845787186,0.0647,84353.0,84352.0,0.1246403]
[1744845787994,0.0647,84353.0,84352.0,0.1567403]
[1744845796499,0.1832589,84353.0,84352.0,0.1567403]
[1744845796706,0.1832589,84353.0,84352.0,0.1246403]
[1744845796905,0.1832589,84353.0,84352.0,0.1245603]
[1744845797094,0.1832589,84353.0,84352.0,0.1246403]
[1744845798499,0.1832589,84353.0,84352.0,0.1245603]
[1744845798695,0.1832589,84353.0,84352.0,0.1246403]
[1744845799509,0.1832589,84353.0,84352.0,0.006]
[1744845799704,0.1832589,84353.0,84352.0,0.00608]
[1744845800807,0.1832589,84353.0,84352.0,0.1246403]
[1744845801899,0.1832589,84353.0,84352.0,0.1245603]
[1744845801900,0.5946589,84353.0,84352.0,0.1245603]
[1744845802105,0.5946589,84353.0,84352.0,0.1246403]
[1744845804812,0.5946589,84353.0,84352.0,0.00608]
[1744845805320,0.5946589,84353.0,84352.0,0.00076693]
[1744845807007,0.9554589,84353.0,84352.0,0.00076693]
[1744845822018,0.9554589,84353.0,84352.0,0.00011242]
[1744845828022,0.9554589,84353.0,84352.0,1.568e-05]
[1744845830720,0.1185673,84347.0,84346.0,0.0314]
[1744845831222,0.1185715,84344.0,84343.0,0.000108]
[1744845831524,0.1185743,84342.0,84341.0,0.0326]
[1744845832117,0.1843743,84342.0,84341.0,0.0326]
[1744845832320,0.1843743,84342.0,84339.0,0.00017786]
[1744845832321,0.1185771,84340.0,84339.0,0.00017786]
[1744845832722,0.1185771,84340.0,84339.0,0.00025786]
[1744845832928,0.1515771,84340.0,84339.0,0.00025786]
[1744845833121,0.1515771,84340.0,84339.0,0.03215786]
[1744845833320,0.1515771,84340.0,84339.0,0.06455786]
[1744845833724,0.1555771,84340.0,84339.0,0.06555786]
[1744845833923,0.1555771,84340.0,84339.0,0.05443414]
[1744845834119,0.1535771,84340.0,84339.0,0.05343414]
[1744845834324,0.1555771,84340.0,84339.0,0.05443414]
[1744845834526,0.1870771,84340.0,84339.0,0.02203414]
[1744845834726,0.1870771,84340.0,84339.0,0.001]
[1744845835233,0.1850771,84340.0,84339.0,0.001]
[1744845835530,0.1870771,84340.0,84339.0,0.001]
[1744845836027,0.5478771,84340.0,84339.0,0.001]
[1744845836325,0.5478771,84340.0,84339.0,0.00108]
[1744845837132,0.96811157,84340.0,84339.0,0.00108]
[1744845837318,0.0592905,84338.0,84331.0,0.00017786]
[1744845837518,0.4793884,84332.0,84331.0,0.00017786]
[1744845837724,0.4793884,84332.0,84331.0,0.00025786]
[1744845838326,0.5431884,84332.0,84331.0,0.00025786]
[1744845839332,0.55483316,84332.0,84331.0,0.00025786]
[1744845839630,0.55583316,84332.0,84331.0,0.00125786]
[1744845840633,0.1185912,84330.0,84329.0,0.00509905]
[1744845840829,0.118601,84323.0,84322.0,0.1492022]
[1744845841030,0.479401,84323.0,84322.0,0.1792022]
[1744845841427,0.479401,84323.0,84322.0,0.0606]
[1744845841628,0.479401,84323.0,84322.0,0.1792824]
[1744845842731,0.480401,84323.0,84322.0,0.1832824]
[1744845845643,0.119601,84323.0,84322.0,0.1832824]
[1744845845844,0.480401,84323.0,84322.0,0.1832824]
[1744845847938,0.119601,84323.0,84322.0,0.5440824]
[1744845848347,0.119601,84323.0,84322.0,0.1832824]
[1744845848942,0.119601,84323.0,84322.0,0.1832024]
[1744845849147,0.480401,84323.0,84322.0,0.06468]
[1744845849644,0.480401,84323.0,84322.0,0.1832824]
[1744845850037,0.480401,84323.0,84322.0,0.004]
[1744845850245,0.511601,84323.0,84322.0,0.00408]
[1744845850945,0.511601,84323.0,84322.0,0.004]
[1744845851136,0.511601,84323.0,84322.0,0.00408]
[1744845853246,0.511601,84323.0,84322.0,0.1226824]
[1744845853539,0.511601,84323.0,84322.0,0.1864824]
[1744845855545,0.480401,84323.0,84322.0,0.1864824]
[1744845859660,0.119601,84323.0,84322.0,0.1864824]
[1744845860762,0.480401,84323.0,84322.0,0.1864824]
[1744845863768,0.119601,84323.0,84322.0,0.1864824]
[1744845866163,0.001,84323.0,84322.0,0.1864824]
[1744845866559,0.119601,84323.0,84322.0,0.1864824]
[1744845871970,0.001,84323.0,84322.0,0.1864824]
[1744845872968,0.119601,84323.0,84322.0,0.1864824]
[1744845884671,0.149801,84323.0,84322.0,0.1864824]
[1744845886272,0.149801,84323.0,84322.0,0.1226824]
[1744845886473,0.149801,84323.0,84322.0,0.1226024]
[1744845886672,0.510601,84323.0,84322.0,0.1226824]
[1744845888370,0.510601,84323.0,84322.0,0.00408]
[1744845889076,0.510601,84323.0,84322.0,0.1226824]
[1744845889274,0.510601,84323.0,84322.0,0.1226024]
[1744845889473,0.510601,84323.0,84322.0,0.1226824]
[1744845891876,0.149801,84323.0,84322.0,0.1226824]
[1744845893073,0.510601,84323.0,84322.0,0.1226824]
[1744845893676,0.149801,84323.0,84322.0,0.1226824]
[1744845894781,0.510601,84323.0,84322.0,0.1226824]
[1744845895679,0.149801,84323.0,84322.0,0.1226824]
[1744845896272,0.149801,84323.0,84322.0,0.1543824]
[1744845896673,0.510601,84323.0,84322.0,0.1543824]
[1744845896881,0.510601,84323.0,84322.0,0.1226824]
[1744845898979,0.149801,84323.0,84322.0,0.1226824]
[1744845903077,0.149801,84323.0,84322.0,0.1526824]
[1744845909782,0.0312,84323.0,84322.0,0.1526824]
[1744845909982,0.149801,84323.0,84322.0,0.1526824]
[1744845910192,0.0312,84323.0,84322.0,0.1526824]
[1744845911385,0.0312,84323.0,84322.0,0.1840824]
[1744845911591,0.001,84323.0,84322.0,0.1840824]
[1744845914692,0.119601,84323.0,84322.0,0.1840824]
[1744845915293,0.001,84323.0,84322.0,0.1840824]
[1744845915491,0.0323,84323.0,84322.0,0.1840824]
[1744845916093,0.150901,84323.0,84322.0,0.1840824]
[1744845916290,0.511701,84323.0,84322.0,0.1526824]
[1744845916498,0.150901,84323.0,84322.0,0.1226024]
[1744845916701,0.150901,84323.0,84322.0,0.1226824]
[1744845916899,0.183301,84323.0,84322.0,0.1226824]
[1744845917402,0.183301,84323.0,84322.0,0.1226024]
[1744845917790,0.183301,84323.0,84322.0,0.1226824]
[1744845922402,0.183301,84323.0,84322.0,0.1226024]
[1744845922599,0.183301,84323.0,84322.0,0.1226824]
[1744845923302,0.544101,84323.0,84322.0,0.1226824]
[1744845935711,0.183301,84323.0,84322.0,0.1226824]
[1744845935906,0.544101,84323.0,84322.0,0.1226824]
[1744845944119,0.183301,84323.0,84322.0,0.1226824]
[1744845944718,0.214701,84323.0,84322.0,0.1226824]
[1744845947019,0.214701,84323.0,84322.0,0.1533824]
[1744845947921,0.214701,84323.0,84322.0,0.1226824]
[1744845951023,0.214701,84323.0,84322.0,0.1226024]
[1744845951321,0.214701,84323.0,84322.0,0.1226824]
[1744845957429,0.214701,84323.0,84322.0,0.00408]
[1744845961437,0.214701,84323.0,84322.0,0.004]
[1744845961634,0.214701,84323.0,84322.0,0.00408]
[1744845962140,0.22659969,84323.0,84322.0,0.00408]
[1744845962440,0.214701,84323.0,84322.0,0.00408]
[1744845964034,0.575501,84323.0,84322.0,0.00408]
[1744845970243,0.1186095,84317.0,84316.0,0.000108]
[1744845970444,0.1186123,84315.0,84314.0,0.1186134]
[1744845971053,0.1816123,84315.0,84314.0,0.1186134]
[1744845971738,0.1816123,84315.0,84314.0,0.1196134]
[1744845971938,0.1826123,84315.0,84314.0,0.1196134]
[1744845972745,0.1826123,84315.0,84314.0,0.1226134]
[1744845972946,0.1826123,84315.0,84314.0,0.1534134]
[1744845974143,0.1826123,84315.0,84314.0,0.004]
[1744845974647,0.1826123,84315.0,84314.0,0.00408]
[1744845975648,0.1826123,84315.0,84314.0,0.1226937]
[1744845976546,0.1826123,84315.0,84314.0,0.1544937]
[1744845978047,0.1502123,84315.0,84314.0,0.1544937]
[1744845986753,0.5110123,84315.0,84314.0,0.1544937]
[1744845992257,0.5110123,84315.0,84314.0,0.16634067]
[1744845995552,0.3924,84315.0,84314.0,0.16634067]
[1744845995762,0.5110123,84315.0,84314.0,0.16634067]
[1744845996155,0.1502123,84315.0,84314.0,0.16634067]
[1744845996555,0.0316,84315.0,84314.0,0.16634067]
[1744845996861,0.001,84315.0,84314.0,0.16634067]
[1744845997059,0.001,84315.0,84314.0,0.41634067]
[1744845997251,0.4114,84319.0,84318.0,0.1186081]
[1744845998153,0.4114,84319.0,84318.0,0.1794081]
[1744845998355,0.1186001,84324.0,84323.0,0.118601]
[1744845998959,0.1186001,84324.0,84323.0,0.179401]
[1744845999347,0.1186067,84319.0,84318.0,0.178905]
[1744845999562,0.1186067,84319.0,84318.0,0.0593027]
[1744845999763,0.1186067,84319.0,84318.0,0.0594107]
[1744845999954,0.1186067,84319.0,84318.0,0.0614107]
[1744846000154,0.1819067,84319.0,84318.0,0.0614107]
[1744846000357,0.5427067,84319.0,84318.0,0.0614107]
[1744846001560,0.5437067,84319.0,84318.0,0.004108]
[1744846001861,0.5437067,84319.0,84318.0,0.004]
[1744846002161,0.5437067,84319.0,84318.0,0.00408]
[1744846005962,0.0593043,84318.0,84303.0,0.01510062]
[1744846006167,0.1186278,84304.0,84303.0,0.00510062]
[1744846006869,0.1186278,84304.0,84303.0,0.016994]
[1744846007068,0.1812278,84304.0,84303.0,0.016994]
[1744846007669,0.1812278,84304.0,84303.0,0.1386232]
[1744846008267,0.1822278,84304.0,84303.0,0.1386232]
[1744846008872,0.1822278,84304.0,84303.0,0.019994]
[1744846009669,0.1822278,84304.0,84303.0,0.020074]
[1744846010267,0.1822278,84304.0,84303.0,0.00818062]
[1744846011168,0.1822278,84304.0,84303.0,0.02013109]
[1744846011374,0.1822278,84304.0,84303.0,0.00818062]
[1744846012069,0.1822278,84304.0,84303.0,0.01995515]
[1744846012572,0.1822278,84304.0,84303.0,0.00818062]
[1744846012973,0.1822278,84304.0,84303.0,0.00810062]
[1744846013177,0.1922278,84304.0,84303.0,0.00818062]
[1744846013971,0.1922278,84304.0,84303.0,0.00810062]
[1744846014275,0.1922278,84304.0,84303.0,0.00618062]
[1744846015680,0.1922278,84304.0,84303.0,0.12480982]
[1744846015977,0.1922278,84304.0,84303.0,0.00618062]
[1744846016367,0.1922278,84304.0,84303.0,0.12480982]
[1744846017375,0.5530278,84304.0,84303.0,0.12480982]
[1744846018376,0.1922278,84304.0,84303.0,0.12480982]
[1744846018580,0.5530278,84304.0,84303.0,0.12480982]
[1744846018784,0.1922278,84304.0,84303.0,0.12480982]
[1744846019472,0.1610278,84304.0,84303.0,0.12480982]
[1744846020081,0.1610278,84304.0,84303.0,0.19020982]
[1744846024985,0.1610278,84304.0,84303.0,0.12480982]
[1744846025374,0.1610278,84304.0,84303.0,0.12472982]
[1744846025579,0.1610278,84304.0,84303.0,0.12480982]
[1744846029981,0.5218278,84304.0,84303.0,0.12480982]
[1744846036093,0.5218278,84304.0,84303.0,0.00618062]
[1744846036501,0.5218278,84304.0,84303.0,0.00610062]
[1744846038396,0.5218278,84304.0,84303.0,0.00618062]
[1744846038597,0.5547278,84304.0,84303.0,0.00618062]
[1744846049703,0.5547278,84304.0,84303.0,0.12480982]
[1744846049905,0.5218278,84304.0,84303.0,0.12480982]
[1744846050706,0.4032,84304.0,84303.0,0.12480982]
[1744846050909,0.001,84304.0,84303.0,0.12480982]
[1744846051512,0.1522278,84304.0,84303.0,0.12480982]
[1744846078431,0.1522278,84304.0,84303.0,0.00610062]
[1744846078628,0.1522278,84304.0,84303.0,0.00618062]
[1744846079033,0.1522278,84304.0,84303.0,0.00610062]
[1744846079335,0.1522278,84304.0,84303.0,0.00618062]
[1744846080537,0.1522278,84304.0,84303.0,0.12480982]
[1744846085052,0.0336,84304.0,84303.0,0.12480982]
[1744846085843,0.0336,84304.0,84303.0,0.18950982]
[1744846098960,0.3608,84309.0,84308.0,0.1186221]
[1744846099657,0.1186128,84315.0,84311.0,0.1186179]
[1744846100054,0.1490111,84316.0,84311.0,0.1186179]
[1744846100261,0.0309,84314.0,84311.0,0.1186179]
[1744846100452,0.0309,84314.0,84311.0,0.1803179]
[1744846101854,0.0309,84314.0,84311.0,0.19237562]
[1744846102158,0.00117786,84312.0,84311.0,0.19237562]
[1744846102553,0.00017786,84312.0,84311.0,0.19337562]
[1744846104562,0.00017786,84312.0,84311.0,0.19237562]
[1744846105554,0.00017786,84312.0,84311.0,0.19437562]